bitfinex/quotes_BTCUSD_20241002
["timestamp","ask_amount","ask_price","bid_price","bid_amount"]
[1727865393728,0.001,61598.0,61597.0,0.03279254]
[1727865393937,0.32703445,61599.0,61597.0,0.03279254]
[1727865394356,0.32903445,61599.0,61597.0,0.03279254]
[1727865394573,0.162342,61598.0,61597.0,0.03279254]
[1727865394800,0.32703645,61598.0,61597.0,0.03179254]
[1727865395012,0.162348,61596.0,61595.0,0.00164]
[1727865395223,0.32704245,61596.0,61595.0,0.03343734]
[1727865395406,0.32704245,61596.0,61595.0,0.00164]
[1727865395683,0.32704245,61596.0,61595.0,0.03343734]
[1727865395886,0.32704245,61596.0,61595.0,0.00164]
[1727865396117,0.32704245,61596.0,61595.0,0.03343734]
[1727865396327,0.32704245,61596.0,61595.0,0.00164]
[1727865396535,0.32704245,61596.0,61595.0,0.03343734]
[1727865396834,0.32704245,61596.0,61595.0,0.00364]
[1727865396835,0.42478459,61596.0,61595.0,0.00364]
[1727865397062,0.42478459,61596.0,61595.0,0.03543734]
[1727865397267,0.42478459,61596.0,61595.0,0.00364]
[1727865397451,0.42478459,61596.0,61595.0,0.03543734]
[1727865397686,0.42478459,61596.0,61595.0,0.00664]
[1727865397894,0.42478459,61596.0,61595.0,0.03843734]
[1727865398138,0.32704245,61596.0,61595.0,0.00164]
[1727865398339,0.32804245,61596.0,61595.0,0.03343734]
[1727865399386,0.33004245,61596.0,61595.0,0.03343734]
[1727865399805,0.33004245,61596.0,61595.0,0.00164]
[1727865400438,0.35305124,61596.0,61595.0,0.00164]
[1727865402141,0.33004245,61596.0,61595.0,0.00164]
[1727865404068,0.003,61596.0,61595.0,0.24269]
[1727865404281,0.003,61596.0,61595.0,0.08034]
[1727865404491,0.003,61596.0,61595.0,0.11218001]
[1727865404702,0.165348,61596.0,61595.0,0.11218001]
[1727865405376,0.41159555,61596.0,61595.0,0.03348001]
[1727865405819,0.41159555,61596.0,61595.0,0.00164]
[1727865406051,0.40859555,61596.0,61595.0,0.00164]
[1727865406280,0.40859555,61596.0,61595.0,0.00364]
[1727865406501,0.56156682,61596.0,61595.0,0.00564]
[1727865406708,0.55956682,61596.0,61595.0,0.00164]
[1727865406919,0.56156682,61596.0,61595.0,0.00164]
[1727865407142,0.56256682,61596.0,61595.0,0.00164]
[1727865407359,0.56056682,61596.0,61595.0,0.00164]
[1727865407796,0.55956682,61596.0,61595.0,0.00164]
[1727865408006,0.56656682,61596.0,61595.0,0.00164]
[1727865408229,0.66656682,61596.0,61595.0,0.00164]
[1727865408452,1.19116839,61596.0,61595.0,0.00164]
[1727865408675,1.21548118,61596.0,61595.0,0.00164]
[1727865409116,1.22048118,61596.0,61595.0,0.00164]
[1727865409378,1.22248118,61596.0,61595.0,0.00164]
[1727865409594,1.21048118,61596.0,61595.0,0.00164]
[1727865409827,1.20848118,61596.0,61595.0,0.00164]
[1727865410069,1.04612676,61596.0,61595.0,0.00164]
[1727865410499,1.04611947,61596.0,61595.0,0.00164]
[1727865410981,1.07046318,61596.0,61595.0,0.00164]
[1727865411194,1.09722482,61596.0,61595.0,0.00164]
[1727865411682,1.21869876,61596.0,61595.0,0.00164]
[1727865411908,1.09722482,61596.0,61595.0,0.00164]
[1727865412587,1.19439618,61596.0,61595.0,0.00164]
[1727865413037,1.21871523,61596.0,61595.0,0.00164]
[1727865413297,1.19439708,61596.0,61595.0,0.00164]
[1727865413520,1.21871523,61596.0,61595.0,0.00164]
[1727865414491,1.09722482,61596.0,61595.0,0.00164]
[1727865414933,0.41534027,61588.0,61574.0,0.24469665]
[1727865415161,1.69873839,61588.0,61574.0,0.24469665]
[1727865415398,1.65015195,61588.0,61574.0,0.24469665]
[1727865416327,1.69873839,61588.0,61574.0,0.24469665]
[1727865416800,1.88323839,61588.0,61574.0,0.24469665]
[1727865417040,1.84665195,61588.0,61574.0,0.24469665]
[1727865417483,1.73767395,61588.0,61574.0,0.24469665]
[1727865417703,1.72567395,61588.0,61574.0,0.24469665]
[1727865419369,1.73967395,61588.0,61574.0,0.24469665]
[1727865419598,1.80224406,61588.0,61574.0,0.24469665]
[1727865420054,1.63727279,61588.0,61574.0,0.24469665]
[1727865420281,1.78824406,61588.0,61574.0,0.24469665]
[1727865420514,1.75367395,61588.0,61574.0,0.24469665]
[1727865420750,1.80455723,61588.0,61574.0,0.24469665]
[1727865420982,0.41376127,61580.0,61575.0,0.24305865]
[1727865421239,3.44138472,61580.0,61575.0,0.24305865]
[1727865421471,1.17672808,61580.0,61575.0,0.24305865]
[1727865421703,1.12815972,61580.0,61575.0,0.24305865]
[1727865421937,1.20302786,61580.0,61575.0,0.24305865]
[1727865422424,1.20302786,61580.0,61574.0,0.001638]
[1727865422425,1.28970469,61580.0,61574.0,0.001638]
[1727865422695,1.24115303,61580.0,61574.0,0.001638]
[1727865423413,1.24115303,61580.0,61567.0,0.001636]
[1727865423414,0.007,61568.0,61567.0,0.001636]
[1727865423666,0.264432,61564.0,61563.0,0.24305865]
[1727865423891,2.88369702,61564.0,61563.0,0.24305865]
[1727865424134,0.264437,61562.0,61559.0,0.001636]
[1727865424358,0.269443,61560.0,61559.0,0.001636]
[1727865424581,0.002,61550.0,61537.0,0.0754]
[1727865424838,0.324919,61554.0,61533.0,0.00164]
[1727865424839,0.41545127,61546.0,61533.0,0.00164]
[1727865425103,1.41834627,61546.0,61533.0,0.00164]
[1727865425339,1.41834627,61546.0,61545.0,1e-06]
[1727865425340,1.58822809,61546.0,61545.0,1e-06]
[1727865425566,0.61232327,61546.0,61545.0,1e-06]
[1727865425792,0.26248,61546.0,61545.0,1e-06]
[1727865426048,0.42717445,61546.0,61545.0,1e-06]
[1727865426720,0.43817445,61546.0,61545.0,1e-06]
[1727865427581,0.44717445,61546.0,61545.0,1e-06]
[1727865433557,0.84120437,61546.0,61545.0,1e-06]
[1727865433785,0.60014572,61546.0,61545.0,1e-06]
[1727865434555,0.76513572,61546.0,61545.0,1e-06]
[1727865434798,0.77713572,61546.0,61545.0,1e-06]
[1727865435033,0.41348227,61534.0,61533.0,0.00164]
[1727865435276,1.76143372,61534.0,61533.0,0.00164]
[1727865435502,0.70629272,61534.0,61533.0,0.00164]
[1727865437043,0.72029272,61534.0,61533.0,0.00164]
[1727865437266,0.73429272,61534.0,61533.0,0.00164]
[1727865437498,0.86497963,61534.0,61533.0,0.00164]
[1727865437938,0.86297963,61534.0,61533.0,0.00164]
[1727865438359,0.86497963,61534.0,61533.0,0.00164]
[1727865438798,0.73229272,61534.0,61533.0,0.00164]
[1727865439228,0.73429272,61534.0,61533.0,0.00164]
[1727865440801,1.14645137,61534.0,61533.0,0.00164]
[1727865441062,0.90339272,61534.0,61533.0,0.00164]
[1727865441757,0.95188151,61534.0,61533.0,0.00164]
[1727865441976,1.07327454,61534.0,61533.0,0.00164]
[1727865442184,1.04527454,61534.0,61533.0,0.00164]
[1727865442392,1.10776333,61534.0,61533.0,0.00164]
[1727865442602,1.12151749,61534.0,61533.0,0.00164]
[1727865442804,1.10751749,61534.0,61533.0,0.00164]
[1727865443261,0.41550327,61526.0,61521.0,0.0002]
[1727865443474,4.86020272,61526.0,61525.0,1e-06]
[1727865443694,3.73702772,61526.0,61525.0,1e-06]
[1727865443969,0.97883451,61526.0,61525.0,1e-06]
[1727865444827,0.98383451,61526.0,61525.0,1e-06]
[1727865445050,1.14871633,61526.0,61525.0,1e-06]
[1727865445269,1.14871633,61526.0,61521.0,1e-06]
[1727865445270,0.42051427,61522.0,61521.0,1e-06]
[1727865445479,0.58520872,61522.0,61521.0,1e-06]
[1727865445688,1.35823072,61522.0,61521.0,1e-06]
[1727865445907,0.67629145,61522.0,61521.0,1e-06]
[1727865446117,0.42723745,61522.0,61521.0,1e-06]
[1727865446547,0.59220872,61522.0,61521.0,1e-06]
[1727865446986,0.34123745,61522.0,61521.0,1e-06]
[1727865447434,0.35323745,61522.0,61521.0,1e-06]
[1727865447932,0.35323745,61522.0,61521.0,0.03300387]
[1727865448145,0.35323745,61522.0,61521.0,1e-06]
[1727865448358,0.45323745,61522.0,61521.0,1e-06]
[1727865448831,0.5960829,61522.0,61521.0,1e-06]
[1727865449067,1.99472845,61522.0,61521.0,1e-06]
[1727865449291,1.33031345,61522.0,61521.0,1e-06]
[1727865449484,1.31951345,61522.0,61521.0,1e-06]
[1727865449954,1.30751345,61522.0,61521.0,1e-06]
[1727865450188,1.46039527,61522.0,61521.0,1e-06]
[1727865450415,1.48839527,61522.0,61521.0,1e-06]
[1727865450638,1.49138495,61522.0,61521.0,1e-06]
[1727865451116,1.53987374,61522.0,61521.0,1e-06]
[1727865451336,1.53787374,61522.0,61521.0,1e-06]
[1727865451988,1.53987374,61522.0,61521.0,1e-06]
[1727865452219,1.55387374,61522.0,61521.0,1e-06]
[1727865452670,1.50538495,61522.0,61521.0,1e-06]
[1727865452896,1.55387374,61522.0,61521.0,1e-06]
[1727865453355,1.55887374,61522.0,61521.0,1e-06]
[1727865453842,1.25632695,61522.0,61521.0,1e-06]
[1727865454071,1.25132695,61522.0,61521.0,1e-06]
[1727865454316,1.30481574,61522.0,61521.0,1e-06]
[1727865454526,1.25632695,61522.0,61521.0,1e-06]
[1727865454955,1.81966395,61522.0,61521.0,0.001643]
[1727865455188,1.88497374,61522.0,61521.0,0.001643]
[1727865455404,1.35896695,61522.0,61521.0,0.001643]
[1727865455620,1.34640195,61522.0,61521.0,0.001643]
[1727865455834,1.33240195,61522.0,61521.0,0.001643]
[1727865456045,1.35840195,61522.0,61521.0,0.001643]
[1727865456259,0.79561013,61522.0,61521.0,0.001643]
[1727865456675,0.77862045,61522.0,61521.0,0.001643]
[1727865456913,0.69927145,61522.0,61521.0,0.001643]
[1727865457123,0.71826113,61522.0,61521.0,0.001643]
[1727865457341,0.71626113,61522.0,61521.0,0.001643]
[1727865457553,0.47304813,61522.0,61521.0,0.001643]
[1727865457998,0.45904813,61522.0,61521.0,0.001643]
[1727865458210,0.61897177,61522.0,61521.0,0.001643]
[1727865458856,0.62097177,61522.0,61521.0,0.001643]
[1727865459069,0.63197177,61522.0,61521.0,0.001643]
[1727865459311,0.61797177,61522.0,61521.0,0.001643]
[1727865459530,0.60697177,61522.0,61521.0,0.001643]
[1727865459749,0.77066177,61522.0,61521.0,0.001643]
[1727865459963,0.75766177,61522.0,61521.0,0.001643]
[1727865460385,0.72336377,61522.0,61521.0,0.001643]
[1727865460642,0.56344013,61522.0,61521.0,0.001643]
[1727865460879,0.35504813,61522.0,61521.0,0.001643]
[1727865461099,0.19250513,61522.0,61521.0,0.001643]
[1727865461317,0.17551545,61522.0,61521.0,0.100643]
[1727865461575,0.17951545,61522.0,61521.0,0.13528902]
[1727865461799,0.34205845,61522.0,61521.0,0.13528902]
[1727865462013,0.35605845,61522.0,61521.0,0.13528902]
[1727865462228,0.34205845,61522.0,61521.0,0.13528902]
[1727865462454,0.34005845,61522.0,61521.0,0.13528902]
[1727865462869,0.32805845,61522.0,61521.0,0.13528902]
[1727865463068,0.33705845,61522.0,61521.0,0.13528902]
[1727865463366,0.34405845,61522.0,61521.0,0.13528902]
[1727865464507,0.33505845,61522.0,61521.0,0.13528902]
[1727865464755,0.33005845,61522.0,61521.0,0.13528902]
[1727865464980,0.16751545,61522.0,61521.0,0.13528902]
[1727865465210,0.002821,61522.0,61521.0,0.37743502]
[1727865466751,0.33005845,61522.0,61521.0,0.21488902]
[1727865467237,0.33005845,61522.0,61521.0,0.081243]
[1727865467880,0.32805845,61522.0,61521.0,0.081243]
[1727865468092,0.33005845,61522.0,61521.0,0.081243]
[1727865468311,0.33405845,61522.0,61521.0,0.081243]
[1727865468532,0.33205845,61522.0,61521.0,0.081243]
[1727865468966,0.33405845,61522.0,61521.0,0.081243]
[1727865469889,0.33405845,61522.0,61521.0,0.177643]
[1727865469890,0.006821,61522.0,61521.0,0.177643]
[1727865470110,0.006821,61522.0,61521.0,0.21213566]
[1727865470546,0.006821,61522.0,61521.0,0.37468166]
[1727865472181,0.004821,61522.0,61521.0,0.37468166]
[1727865472616,0.002821,61522.0,61521.0,0.37468166]
[1727865473134,0.000821,61522.0,61521.0,0.37468166]
[1727865473355,0.000821,61522.0,61521.0,0.21213566]
[1727865473356,0.16551545,61522.0,61521.0,0.21213566]
[1727865474244,0.001821,61522.0,61521.0,0.37668166]
[1727865474489,0.002821,61522.0,61521.0,0.37668166]
[1727865474787,0.000821,61522.0,61521.0,0.37468166]
[1727865475567,0.000821,61522.0,61521.0,0.37668166]
[1727865475568,0.001821,61522.0,61521.0,0.37668166]
[1727865475823,0.162499,61539.0,61534.0,0.333811]
[1727865476107,0.162497,61540.0,61534.0,0.333811]
[1727865476400,0.1625,61539.0,61534.0,0.36826006]
[1727865476673,0.56804265,61542.0,61534.0,0.20574906]
[1727865476674,0.162507,61536.0,61534.0,0.20574906]
[1727865476939,0.40556765,61535.0,61534.0,0.11074906]
[1727865477219,0.40556765,61535.0,61534.0,0.03444906]
[1727865477220,0.32720345,61535.0,61534.0,0.03444906]
[1727865477491,0.32720345,61535.0,61529.0,0.0823]
[1727865477492,0.162522,61530.0,61529.0,0.0823]
[1727865477929,0.32721645,61530.0,61529.0,0.0823]
[1727865478696,0.32721645,61530.0,61528.0,0.0908]
[1727865478697,0.001,61522.0,61521.0,0.004643]
[1727865479233,0.162539,61524.0,61521.0,0.001643]
[1727865479497,0.162542,61523.0,61521.0,0.03599417]
[1727865479737,0.162542,61523.0,61522.0,0.03435046]
[1727865480936,0.325051,61529.0,61522.0,0.18532173]
[1727865481155,0.16469445,61528.0,61526.0,0.162532]
[1727865481367,0.16469445,61528.0,61526.0,0.15097127]
[1727865481598,0.16469445,61528.0,61527.0,0.03437364]
[1727865481828,0.008,61530.0,61529.0,0.162524]
[1727865482063,0.162503,61538.0,61534.0,0.16251]
[1727865482301,0.324991,61541.0,61535.0,0.403015]
[1727865482542,0.56804365,61542.0,61538.0,0.15097127]
[1727865482786,0.162493,61541.0,61538.0,0.15097127]
[1727865482985,0.162493,61541.0,61539.0,0.03436511]
[1727865482986,0.24305865,61541.0,61539.0,0.03436511]
[1727865483195,0.162495,61541.0,61539.0,0.03436511]
[1727865483623,0.324955,61547.0,61535.0,0.403015]
[1727865483624,0.324955,61547.0,61541.0,0.162491]
[1727865483872,0.324955,61547.0,61542.0,0.25067127]
[1727865484098,0.24305865,61549.0,61542.0,0.25067127]
[1727865484099,0.24305865,61549.0,61542.0,0.13397843]
[1727865484316,0.162488,61543.0,61542.0,0.13397843]
[1727865484525,0.162485,61544.0,61542.0,0.03427843]
[1727865484949,0.162485,61544.0,61540.0,0.162495]
[1727865485188,0.162485,61544.0,61543.0,0.03425132]
[1727865485428,0.325786,61545.0,61542.0,0.002]
[1727865485654,0.162485,61544.0,61543.0,0.03425132]
[1727865485887,0.325786,61545.0,61538.0,0.47596927]
[1727865485888,0.00082,61545.0,61541.0,0.162491]
[1727865486110,0.00082,61545.0,61544.0,0.162485]
[1727865486342,0.00082,61545.0,61544.0,0.34043438]
[1727865486593,0.24305865,61554.0,61553.0,0.337161]
[1727865487024,0.24305865,61563.0,61562.0,0.162437]
[1727865487242,0.24305865,61563.0,61562.0,0.31340827]
[1727865487466,0.24305865,61563.0,61562.0,0.244237]
[1727865487685,0.324852,61567.0,61562.0,0.1174365]
[1727865487895,0.15297127,61579.0,61562.0,0.1174365]
[1727865488111,0.162435,61563.0,61562.0,0.1174365]
[1727865488317,0.16469445,61569.0,61562.0,0.1174365]
[1727865488537,0.165435,61563.0,61562.0,0.1174365]
[1727865488748,0.162435,61563.0,61562.0,0.0356365]
[1727865488958,0.162448,61558.0,61556.0,0.0786]
[1727865489384,0.324889,61560.0,61557.0,0.03564005]
[1727865489594,0.324875,61563.0,61557.0,0.03564005]
[1727865489802,0.162445,61560.0,61557.0,0.03564005]
[1727865490012,0.324885,61561.0,61557.0,0.03564005]
[1727865490264,0.162448,61558.0,61557.0,0.03564005]
[1727865490700,0.162448,61558.0,61550.0,0.0786]
[1727865490701,0.000819,61554.0,61553.0,0.162461]
[1727865490915,0.000819,61554.0,61552.0,0.162463]
[1727865491586,0.000819,61554.0,61553.0,0.162461]
[1727865492004,0.001819,61554.0,61553.0,0.162461]
[1727865492216,0.001819,61554.0,61553.0,0.16570997]
[1727865492887,0.000819,61554.0,61553.0,0.16570997]
[1727865493336,0.000819,61554.0,61553.0,0.162461]
[1727865494196,0.000819,61554.0,61553.0,0.19785393]
[1727865495042,0.000819,61554.0,61553.0,0.19885393]
[1727865495261,0.000819,61554.0,61553.0,0.19785393]
[1727865495500,0.001819,61554.0,61553.0,0.03639293]
[1727865495718,0.001819,61554.0,61553.0,0.04039293]
[1727865495719,0.165277,61554.0,61553.0,0.04039293]
[1727865495941,0.002819,61554.0,61553.0,0.20285393]
[1727865496382,0.000819,61554.0,61553.0,0.19785393]
[1727865496593,0.000819,61554.0,61553.0,0.19885393]
[1727865496813,0.000819,61554.0,61553.0,0.20285393]
[1727865497269,0.163277,61554.0,61553.0,0.04039293]
[1727865497500,0.000819,61554.0,61553.0,0.04039293]
[1727865497955,0.16551345,61554.0,61553.0,0.04039293]
[1727865498216,0.32797145,61554.0,61553.0,0.04039293]
[1727865499318,0.32797145,61554.0,61553.0,0.005]
[1727865500021,0.42997145,61554.0,61553.0,0.001]
[1727865500239,0.42897145,61554.0,61553.0,0.001]
[1727865501147,0.162491,61542.0,61538.0,0.1625]
[1727865501379,0.16469445,61541.0,61539.0,0.162498]
[1727865501601,0.16469445,61541.0,61539.0,0.19787937]
[1727865502251,0.16469445,61541.0,61539.0,0.03538137]
[1727865502459,0.16869445,61541.0,61539.0,0.19787937]
[1727865502665,0.16869445,61541.0,61539.0,0.03538137]
[1727865502867,0.16469445,61541.0,61538.0,0.162498]
[1727865503074,0.16469445,61541.0,61540.0,0.162495]
[1727865503286,0.16469445,61541.0,61539.0,0.1980674]
[1727865503514,0.32718745,61541.0,61540.0,0.03556869]
[1727865503709,0.32718745,61541.0,61538.0,0.162499]
[1727865503930,0.48968245,61541.0,61537.0,0.0792]
[1727865504151,0.16469445,61540.0,61537.0,0.0792]
[1727865504368,0.16469445,61540.0,61529.0,0.0765]
[1727865504599,0.324998,61539.0,61529.0,0.0765]
[1727865504837,0.325024,61534.0,61529.0,0.239024]
[1727865505062,0.162517,61532.0,61529.0,0.239024]
[1727865505699,0.162514,61533.0,61530.0,0.162521]
[1727865506405,0.001,61532.0,61530.0,0.162521]
[1727865507457,0.001,61532.0,61529.0,0.0805]
[1727865507669,0.001,61532.0,61529.0,0.401546]
[1727865507893,0.32720645,61534.0,61529.0,0.402546]
[1727865508100,0.001,61533.0,61531.0,0.162518]
[1727865508533,0.001,61532.0,61531.0,0.162518]
[1727865508740,0.162522,61530.0,61529.0,0.004]
[1727865508959,0.162522,61530.0,61529.0,0.005]
[1727865509177,0.16469445,61530.0,61529.0,0.04185554]
[1727865509394,0.16469445,61530.0,61524.0,0.0803]
[1727865509611,0.16469445,61530.0,61524.0,0.242837]
[1727865509856,0.325057,61528.0,61522.0,0.16418]
[1727865510058,0.162533,61526.0,61523.0,0.162539]
[1727865510282,0.162533,61526.0,61522.0,0.001638]
[1727865510503,0.162533,61526.0,61523.0,0.162539]
[1727865510912,0.162533,61526.0,61522.0,0.001638]
[1727865510913,0.162535,61525.0,61522.0,0.001638]
[1727865511130,0.162528,61528.0,61524.0,0.162537]
[1727865511338,0.162528,61528.0,61525.0,0.162533]
[1727865511549,0.19017396,61529.0,61528.0,0.162527]
[1727865511769,0.02547951,61529.0,61528.0,0.243627]
[1727865512862,0.02547951,61529.0,61528.0,0.24687719]
[1727865513083,0.02547951,61529.0,61528.0,0.243627]
[1727865513298,0.02647951,61529.0,61528.0,0.247627]
[1727865514370,0.02547951,61529.0,61528.0,0.243627]
[1727865514577,0.02647951,61529.0,61528.0,0.244627]
[1727865514795,0.02747951,61529.0,61528.0,0.250265]
[1727865515008,0.02647951,61529.0,61528.0,0.249265]
[1727865515215,0.02747951,61529.0,61528.0,0.250265]
[1727865515418,0.02747951,61529.0,61528.0,0.25351509]
[1727865515831,0.02747951,61529.0,61528.0,0.250265]
[1727865516039,0.02547951,61529.0,61528.0,0.245265]
[1727865516278,0.02747951,61529.0,61528.0,0.250265]
[1727865516915,0.35469796,61529.0,61528.0,0.006638]
[1727865517573,0.32821845,61529.0,61528.0,0.002638]
[1727865517790,0.32721845,61529.0,61528.0,0.001638]
[1727865518440,0.39154222,61529.0,61528.0,0.006638]
[1727865518681,0.32921845,61529.0,61528.0,0.006638]
[1727865518894,0.32721845,61529.0,61528.0,0.001638]
[1727865519099,0.33021845,61529.0,61528.0,0.001638]
[1727865519313,0.33121845,61529.0,61528.0,0.001638]
[1727865520616,0.48218972,61529.0,61528.0,0.001638]
[1727865522005,0.76108972,61529.0,61528.0,0.001638]
[1727865522733,1.31369372,61529.0,61528.0,0.001638]
[1727865522976,1.31569372,61529.0,61528.0,0.001638]
[1727865523232,1.31269372,61529.0,61528.0,0.001638]
[1727865523978,1.31169372,61529.0,61528.0,0.001638]
[1727865524220,1.32169372,61529.0,61528.0,0.001638]
[1727865524463,1.31969372,61529.0,61528.0,0.001638]
[1727865524702,1.30969372,61529.0,61528.0,0.001638]
[1727865524932,1.32369372,61529.0,61528.0,0.001638]
[1727865525180,1.33769372,61529.0,61528.0,0.001638]
[1727865525438,1.32369372,61529.0,61528.0,0.001638]
[1727865525711,0.55441127,61523.0,61521.0,0.001643]
[1727865525944,0.87580472,61523.0,61521.0,0.001643]
[1727865526215,0.84206472,61523.0,61521.0,0.001643]
[1727865526725,0.84406472,61523.0,61521.0,0.001643]
[1727865527006,0.85506472,61523.0,61521.0,0.001643]
[1727865527281,1.02894654,61523.0,61521.0,0.001643]
[1727865527542,0.86206472,61523.0,61521.0,0.001643]
[1727865527802,0.73910572,61523.0,61521.0,0.001643]
[1727865528944,0.76459391,61523.0,61521.0,0.001643]
[1727865529392,0.68479391,61523.0,61521.0,0.001643]
[1727865532043,0.62369391,61523.0,61521.0,0.001643]
[1727865532260,0.47272264,61523.0,61521.0,0.001643]
[1727865532481,0.62369391,61523.0,61521.0,0.001643]
[1727865532956,0.59820572,61523.0,61521.0,0.001643]
[1727865533381,0.91238872,61523.0,61521.0,0.001643]
[1727865534770,0.44723445,61523.0,61521.0,0.001643]
[1727865535926,0.37272092,61523.0,61521.0,0.001643]
[1727865536616,0.37272092,61523.0,61522.0,0.04050212]
[1727865537052,0.37272092,61523.0,61522.0,0.001638]
[1727865537266,0.47272092,61523.0,61522.0,0.04050212]
[1727865537491,0.46372092,61523.0,61522.0,0.04050212]
[1727865537977,0.45572092,61523.0,61522.0,0.04050212]
[1727865538183,0.43323445,61523.0,61522.0,0.04050212]
[1727865538404,0.43023445,61523.0,61522.0,0.04050212]
[1727865538846,0.43123445,61523.0,61522.0,0.04050212]
[1727865539530,0.43123445,61523.0,61522.0,0.001638]
[1727865539749,0.45671867,61523.0,61522.0,0.001638]
[1727865540681,0.5099472,61523.0,61522.0,0.001638]
[1727865542190,0.45671867,61523.0,61522.0,0.001638]
[1727865544684,0.43123445,61523.0,61522.0,0.001638]
[1727865545799,0.43323445,61523.0,61522.0,0.001638]
[1727865546012,1.46006245,61523.0,61522.0,0.001638]
[1727865546231,1.45906245,61523.0,61522.0,0.001638]
[1727865546475,1.79074427,61523.0,61522.0,0.001638]
[1727865546693,1.79974427,61523.0,61522.0,0.001638]
[1727865546952,1.81374427,61523.0,61522.0,0.001638]
[1727865547163,1.74958627,61523.0,61522.0,0.001638]
[1727865547383,1.59670445,61523.0,61522.0,0.001638]
[1727865547601,0.75114045,61523.0,61522.0,0.001638]
[1727865547810,0.76262996,61523.0,61522.0,0.001638]
[1727865548706,0.76462996,61523.0,61522.0,0.001638]
[1727865548912,0.77862996,61523.0,61522.0,0.001638]
[1727865549130,0.94351178,61523.0,61522.0,0.001638]
[1727865549345,0.92951178,61523.0,61522.0,0.001638]
[1727865549559,0.94351178,61523.0,61522.0,0.001638]
[1727865549795,0.92951178,61523.0,61522.0,0.001638]
[1727865550030,0.42051427,61522.0,61521.0,1e-06]
[1727865550262,3.39343551,61522.0,61521.0,1e-06]
[1727865550485,1.65390219,61522.0,61521.0,1e-06]
[1727865551216,1.59500054,61522.0,61521.0,1e-06]
[1727865551461,1.66790219,61522.0,61521.0,1e-06]
[1727865552183,1.62599022,61522.0,61521.0,1e-06]
[1727865552413,1.63099022,61522.0,61521.0,1e-06]
[1727865552635,1.4611084,61522.0,61521.0,1e-06]
[1727865552853,1.0667594,61522.0,61521.0,1e-06]
[1727865553083,1.04976972,61522.0,61521.0,1e-06]
[1727865553331,1.09837602,61522.0,61521.0,1e-06]
[1727865553549,1.04976972,61522.0,61521.0,1e-06]
[1727865553808,0.60620872,61522.0,61521.0,1e-06]
[1727865554305,0.35523745,61522.0,61521.0,1e-06]
[1727865554793,0.35523745,61522.0,61521.0,0.258947]
[1727865554794,0.014,61522.0,61521.0,0.258947]
[1727865555011,0.02548951,61523.0,61522.0,0.162543]
[1727865555234,0.02548951,61523.0,61521.0,0.21854464]
[1727865555451,0.000819,61528.0,61521.0,0.179701]
[1727865555452,0.014,61522.0,61521.0,0.179701]
[1727865555674,0.000819,61528.0,61521.0,0.179701]
[1727865555675,0.325067,61526.0,61521.0,0.179701]
[1727865555910,0.162543,61522.0,61521.0,0.179701]
[1727865556815,0.162543,61522.0,61521.0,0.084301]
[1727865557094,0.32723745,61522.0,61521.0,0.084301]
[1727865557317,0.32723745,61522.0,61521.0,0.083301]
[1727865557547,0.32723745,61522.0,61521.0,0.085301]
[1727865558025,0.32723745,61522.0,61521.0,0.083301]
[1727865558259,0.32823745,61522.0,61521.0,0.084301]
[1727865558711,0.32823745,61522.0,61521.0,0.083301]
[1727865559640,0.32823745,61522.0,61521.0,1e-06]
[1727865559641,0.38054819,61522.0,61521.0,1e-06]
[1727865559873,0.40903143,61522.0,61521.0,1e-06]
[1727865560097,0.40803143,61522.0,61521.0,1e-06]
[1727865560327,0.162554,61518.0,61517.0,0.000639]
[1727865560546,0.32724845,61518.0,61517.0,0.000639]
[1727865561003,0.45489623,61518.0,61517.0,0.03936861]
[1727865561217,0.45489623,61518.0,61513.0,0.080839]
[1727865561218,0.162564,61514.0,61513.0,0.080839]
[1727865561441,0.162564,61514.0,61513.0,0.080739]
[1727865561683,0.325123,61516.0,61513.0,0.11947145]
[1727865561899,0.18804893,61514.0,61513.0,0.11937145]
[1727865562144,0.18804893,61514.0,61513.0,0.11867145]
[1727865562351,0.02548493,61514.0,61513.0,0.11867145]
[1727865562780,0.02548493,61514.0,61513.0,0.11857145]
[1727865563007,0.18804893,61514.0,61513.0,0.11797145]
[1727865563223,0.18804893,61514.0,61513.0,0.11787145]
[1727865563487,0.18804893,61514.0,61513.0,0.11777145]
[1727865563733,0.19017938,61514.0,61513.0,0.03873245]
[1727865563980,0.35274338,61514.0,61513.0,0.03793245]
[1727865564229,0.16258,61508.0,61505.0,0.162487]
[1727865564448,0.16258,61508.0,61505.0,0.162387]
[1727865564663,0.325141,61512.0,61506.0,0.03863155]
[1727865564886,0.19017938,61514.0,61506.0,0.03863155]
[1727865564887,0.02548493,61514.0,61513.0,0.162567]
[1727865565102,0.02548493,61514.0,61513.0,0.254967]
[1727865565336,0.162552,61519.0,61516.0,0.162558]
[1727865565582,0.425093,61521.0,61517.0,0.162556]
[1727865565583,0.1,61521.0,61517.0,0.162556]
[1727865565822,0.32724345,61520.0,61517.0,0.20107529]
[1727865566071,0.32724345,61520.0,61517.0,0.03861929]
[1727865566285,0.162551,61519.0,61517.0,0.03861929]
[1727865566521,0.162551,61519.0,61516.0,0.162558]
[1727865566780,0.162551,61519.0,61518.0,0.03861858]
[1727865567019,0.32724545,61519.0,61518.0,0.03861858]
[1727865567234,0.162569,61512.0,61511.0,0.0805]
[1727865568409,0.166569,61512.0,61511.0,0.0805]
[1727865568646,0.325149,61511.0,61505.0,0.0805]
[1727865568860,0.162585,61506.0,61505.0,0.0805]
[1727865569077,0.32727945,61506.0,61505.0,0.0805]
[1727865569303,0.16469445,61506.0,61505.0,0.0805]
[1727865569762,0.35276767,61506.0,61505.0,0.0805]
[1727865570952,0.35276767,61506.0,61505.0,0.0855]
[1727865571402,0.35276767,61506.0,61505.0,0.12415332]
[1727865571843,0.35276767,61506.0,61505.0,0.11915332]
[1727865572063,0.35276767,61506.0,61505.0,0.12315332]
[1727865574080,0.35276767,61506.0,61505.0,0.04265332]
[1727865575360,0.35276767,61506.0,61505.0,0.04429132]
[1727865577328,0.35276767,61506.0,61505.0,0.005638]
[1727865577557,0.35276767,61506.0,61505.0,0.04429132]
[1727865577816,0.35276767,61506.0,61505.0,0.001638]
[1727865578030,0.35376767,61506.0,61505.0,0.003638]
[1727865578247,0.35376767,61506.0,61505.0,0.04229132]
[1727865578907,0.02648822,61506.0,61505.0,0.28077932]